bitfinex-derivatives/quotes_ETHF0:USTF0_20260307
["timestamp","ask_amount","ask_price","bid_price","bid_amount"]
[1772872024849,0.78981049,1985.7,1984.8,0.90202217]
[1772872025144,6.59135731,1985.6,1984.8,0.90202217]
[1772872025345,5.80154682,1985.5,1984.8,0.90202217]
[1772872025545,0.78981049,1985.6,1984.8,0.90202217]
[1772872030346,0.78981049,1985.9,1984.8,0.90202217]
[1772872030550,0.78981049,1985.7,1984.8,0.90202217]
[1772872034864,0.78981049,1985.8,1985.1,0.78397357]
[1772872035663,0.78981049,1985.8,1985.2,0.78397357]
[1772872038361,4.21481168,1986.1,1985.2,0.78397357]
[1772872038362,0.78981049,1986.1,1985.2,0.78397357]
[1772872038565,6.62307923,1986.0,1985.2,0.78397357]
[1772872038766,6.62307923,1985.9,1985.2,0.78397357]
[1772872039062,0.78981049,1985.9,1985.2,0.78397357]
[1772872042366,0.78981049,1986.1,1985.2,0.78397357]
[1772872043364,5.00462217,1986.3,1985.4,0.78397357]
[1772872043571,0.78981049,1986.3,1985.4,0.78397357]
[1772872044470,0.78981049,1986.2,1985.4,0.78397357]
[1772872047568,0.78981049,1986.2,1985.6,0.78397357]
[1772872055375,0.78981049,1986.2,1985.4,0.75361877]
[1772872060482,1.93672043,1985.9,1985.2,0.75361877]
[1772872060778,0.73840743,1985.8,1985.2,0.75361877]
[1772872061484,0.73840743,1986.4,1985.8,0.75361877]
[1772872062075,0.73840743,1986.4,1985.9,41.55361877]
[1772872062679,0.73840743,1986.4,1986.0,0.75361877]
[1772872069283,0.73840743,1986.4,1985.8,0.75361877]
[1772872072782,0.73840743,1986.4,1986.0,0.75361877]
[1772872076592,0.73840743,1986.6,1986.0,0.75361877]
[1772872078392,0.66041597,1986.7,1986.2,0.70098004]
[1772872078592,0.66041597,1986.7,1986.2,0.70590103]
[1772872081695,0.65504901,1987.0,1986.6,0.70098004]
[1772872081888,0.65504901,1987.0,1986.2,0.70421946]
[1772872082092,0.6536915,1986.8,1986.2,0.00492099]
[1772872082597,0.65910416,1986.8,1986.2,0.00492099]
[1772872094200,0.65910416,1986.8,1986.2,0.70421946]
[1772872099307,0.65910416,1986.8,1986.4,0.69929847]
[1772872099607,0.64285751,1986.8,1986.4,0.69929847]
[1772872100005,0.6536915,1986.9,1986.4,0.69929847]
[1772872100206,0.6536915,1987.1,1986.4,0.69929847]
[1772872101003,0.66003539,1987.1,1986.4,0.69929847]
[1772872102301,0.66003539,1987.1,1986.6,0.69929847]
[1772872103410,0.00634389,1987.1,1986.6,0.69929847]
[1772872103606,0.6536915,1987.3,1986.6,0.69929847]
[1772872104614,0.65972403,1987.3,1986.6,0.69929847]
[1772872113913,0.65972403,1987.3,1986.2,7.84567444]
[1772872113914,0.65972403,1987.3,1986.5,0.60163384]
[1772872114422,0.65972403,1987.3,1986.3,0.60163384]
[1772872117823,0.59772952,1987.2,1986.3,0.60163384]
[1772872118023,0.59772952,1987.1,1986.3,0.60163384]
[1772872143242,0.58304188,1986.9,1986.3,0.60163384]
[1772872149949,0.58304188,1986.9,1986.2,0.62291518]
[1772872150139,0.58304188,1986.9,1986.2,0.00492099]
[1772872150344,0.58304188,1986.9,1986.2,0.62291518]
[1772872153343,0.58304188,1986.9,1986.2,0.00492099]
[1772872153550,0.58304188,1986.9,1986.2,0.62291518]
[1772872190870,0.55990791,1986.7,1986.2,0.62291518]
[1772872191076,0.55990791,1986.7,1986.2,0.00492099]
[1772872193077,0.55990791,1986.5,1985.9,41.37524797]
[1772872194178,0.55990791,1986.5,1985.9,41.3814044]
[1772872196676,0.55990791,1986.5,1985.9,0.5814044]
[1772872198779,0.55899053,1986.3,1985.9,0.5814044]
[1772872198981,0.55899053,1986.1,1985.7,0.5553099]
[1772872199183,0.55899053,1986.1,1985.6,41.3553099]
[1772872199380,0.55899053,1986.1,1985.7,0.5553099]
[1772872200082,0.55899053,1986.1,1985.7,0.56134236]
[1772872203377,0.55899053,1986.1,1985.7,0.61229553]
[1772872204785,0.55899053,1986.1,1985.7,0.00603246]
[1772872206086,0.6069226,1986.2,1985.7,0.61229553]
[1772872210495,0.6069226,1986.4,1985.8,0.60626307]
[1772872210885,6.15015577,1986.8,1985.8,0.60626307]
[1772872211084,0.6069226,1986.6,1985.8,0.60626307]
[1772872215094,1.93534409,1986.8,1985.8,0.60626307]
[1772872215394,0.6069226,1986.9,1986.3,0.60626307]
[1772872237501,0.55687671,1987.2,1986.3,0.60626307]
[1772872239311,0.55687671,1987.0,1986.3,0.60626307]
[1772872239710,0.55687671,1987.0,1986.5,0.55678712]
[1772872239909,0.55687671,1987.2,1986.5,0.55678712]
[1772872240307,6.37547341,1987.1,1986.5,0.55678712]
[1772872240508,0.55687671,1987.1,1986.5,0.55678712]
[1772872244809,0.00603253,1987.3,1986.5,0.55678712]
[1772872244810,0.55687671,1987.2,1986.5,0.55678712]
[1772872245211,0.55687671,1987.2,1986.7,0.55678712]
[1772872254319,0.55687671,1987.2,1986.6,41.35678712]
[1772872254620,0.55687671,1987.2,1986.7,0.55678712]
[1772872254921,0.55687671,1987.2,1986.6,41.35678712]
[1772872255919,0.55687671,1987.2,1986.7,0.55678712]
[1772872256120,0.55687671,1987.2,1986.6,41.35678712]
[1772872260228,0.55687671,1987.2,1986.6,0.55678712]
[1772872260521,0.60932633,1987.3,1986.6,0.55678712]
[1772872260726,0.6032938,1987.5,1986.8,0.55676505]
[1772872261820,0.60756995,1987.5,1986.8,0.55676505]
[1772872264420,0.00427615,1987.5,1986.8,0.55676505]
[1772872266130,0.58049522,1987.5,1987.0,0.57165628]
[1772872267024,0.00427615,1987.5,1987.0,0.57165628]
[1772872267329,0.58049522,1987.5,1987.0,0.57165628]
[1772872269331,0.00427615,1987.5,1987.0,0.57165628]
[1772872269929,0.58049522,1987.5,1987.0,0.57165628]
[1772872273637,0.58049522,1987.5,1986.7,0.57165628]
[1772872274632,0.58049522,1987.5,1986.4,24.464]
[1772872274633,0.58049522,1987.5,1986.9,0.57165628]
[1772872276631,0.58049522,1987.5,1986.8,40.8]
[1772872276834,0.57621907,1987.3,1986.8,40.8]
[1772872277036,0.57621907,1987.3,1986.7,0.57165628]
[1772872277436,0.57621907,1987.3,1986.7,41.37165628]
[1772872278946,0.57621907,1987.3,1986.6,0.57165628]
[1772872280243,0.57621907,1987.1,1986.3,0.57165628]
[1772872284045,6.14994088,1987.4,1986.3,0.57165628]
[1772872284348,6.38623277,1987.3,1986.3,0.57165628]
[1772872284544,0.57621907,1987.3,1986.3,0.57165628]
[1772872285445,0.58049522,1987.5,1986.7,0.57165628]
[1772872285649,0.58049522,1987.5,1986.9,0.57165628]
[1772872285846,0.00427615,1987.5,1986.9,0.57165628]
[1772872286143,0.57621907,1987.9,1987.0,0.57165628]
[1772872286547,0.57621907,1987.9,1987.2,0.57165628]
[1772872286948,0.58197975,1987.9,1987.2,0.57622752]
[1772872287750,0.00576068,1987.9,1987.2,0.57622752]
[1772872288449,0.57621907,1987.8,1987.4,0.57165628]
[1772872289040,0.57621907,1987.8,1987.2,0.00457124]
[1772872289245,0.57621907,1987.5,1987.0,0.57165628]
[1772872290248,0.57621907,1987.7,1987.0,0.57775191]
[1772872290450,0.00576068,1987.9,1987.6,0.57165628]
[1772872290649,0.58197975,1987.9,1987.6,0.57165628]
[1772872290952,0.00576068,1987.9,1987.6,0.57165628]
[1772872291147,0.58197975,1987.9,1987.6,0.57165628]
[1772872291352,0.58197975,1987.9,1987.3,0.57165628]
[1772872291549,0.57621907,1987.7,1987.3,0.57165628]
[1772872291753,0.57621907,1987.7,1987.1,0.57165628]
[1772872292250,0.56392513,1987.5,1987.0,0.55977545]
[1772872293053,0.56392513,1987.5,1987.0,0.00609563]
[1772872293852,0.56392513,1987.5,1987.0,0.55977545]
[1772872297551,0.56392513,1987.5,1987.0,0.00609563]
[1772872297846,0.56392513,1987.5,1987.0,0.55977545]
[1772872299051,0.56392513,1987.5,1987.0,0.00609563]
[1772872300251,0.56392513,1987.7,1987.0,0.55977545]
[1772872300556,2.49691543,1987.5,1987.0,0.00609563]
[1772872300755,0.56392513,1987.4,1987.0,0.00609563]
[1772872301154,0.56392513,1987.4,1986.6,0.55367982]
[1772872301747,0.56392513,1987.4,1986.7,0.55367982]
[1772872302153,0.56392513,1987.4,1986.7,0.55813006]
[1772872303659,0.56392513,1987.2,1986.7,0.55813006]
[1772872303855,0.56392513,1987.2,1986.7,0.00445024]
[1772872304456,0.56392513,1987.2,1986.3,0.55367982]
[1772872304655,0.56392513,1987.0,1986.3,0.55367982]
[1772872304853,0.56392513,1987.0,1986.4,0.55367982]
[1772872305458,0.56392513,1987.0,1986.4,0.55870819]
[1772872305660,0.56392513,1987.1,1986.5,0.55367982]
[1772872308558,0.56392513,1987.0,1986.4,0.55870819]
[1772872309853,4.21481168,1987.4,1986.4,0.55870819]
[1772872310061,0.56392513,1987.2,1986.6,0.55367982]
[1772872310458,0.56392513,1987.2,1986.5,0.55367982]
[1772872317763,0.56392513,1987.1,1986.5,0.55367982]
[1772872319468,0.56392513,1987.1,1986.4,0.55046032]
[1772872323172,0.54163008,1986.9,1986.4,0.00502837]
[1772872323473,0.54163008,1986.7,1986.2,0.54505811]
[1772872323670,0.54163008,1986.7,1986.2,0.54290116]
[1772872324272,0.54163008,1986.8,1986.2,0.54780483]
[1772872325675,7.63763008,1987.0,1986.4,0.54505811]
[1772872325971,5.79402286,1986.9,1986.4,0.54505811]
[1772872326175,4.21481168,1987.2,1986.6,0.54505811]
[1772872326176,0.54163008,1987.1,1986.6,0.54505811]
[1772872328475,0.54163008,1987.1,1987.0,2.0]
[1772872328676,6.33857783,1987.1,1987.0,2.0]
[1772872330678,0.54163008,1987.0,1986.7,0.54505811]
[1772872331175,0.54163008,1987.0,1986.4,0.54505811]
[1772872335681,7.125,1987.1,1986.4,0.54505811]
[1772872335882,5.82205268,1987.0,1986.6,0.54505811]
[1772872336079,7.66663008,1987.1,1986.6,0.54505811]
[1772872336278,6.36352159,1987.0,1986.6,0.54505811]
[1772872336480,7.66963008,1987.1,1986.6,0.54505811]
[1772872336779,6.36337605,1987.0,1986.6,0.54505811]
[1772872336978,0.54163008,1987.0,1986.6,0.54505811]
[1772872343086,7.66963008,1987.1,1986.6,0.54505811]
[1772872343284,6.36414982,1987.0,1986.6,0.54505811]
[1772872343486,0.54163008,1987.0,1986.6,0.54505811]
[1772872349885,0.54163008,1987.1,1986.6,0.54505811]
[1772872350090,5.82321944,1987.0,1986.6,0.54505811]
[1772872350291,7.72463008,1987.1,1986.6,0.54505811]
[1772872350493,5.82311741,1987.0,1986.6,0.54505811]
[1772872350694,7.72463008,1987.1,1986.6,0.54505811]
[1772872350893,5.82311741,1987.0,1986.6,0.54505811]
[1772872351092,7.72463008,1987.1,1986.6,0.54505811]
[1772872351294,5.82309994,1987.0,1986.6,0.54505811]
[1772872351490,0.54163008,1987.0,1986.6,0.54505811]
[1772872361307,0.57930604,1987.0,1986.6,0.54505811]
[1772872361600,0.57930604,1987.0,1986.3,0.58493052]
[1772872368012,6.41300159,1986.9,1986.3,0.58493052]
[1772872368209,0.57930604,1986.9,1986.3,0.58493052]
[1772872372615,0.57930604,1986.9,1986.2,0.58983419]
[1772872372913,0.57930604,1986.7,1986.2,0.58983419]
[1772872382114,0.57930604,1986.7,1986.2,0.00490367]
[1772872382314,0.57930604,1986.7,1986.0,0.58063955]
[1772872382514,0.54263542,1986.5,1986.0,0.58063955]
[1772872382716,0.54263542,1986.5,1985.9,0.58063955]
[1772872383416,0.54836472,1986.5,1985.9,0.58504443]
[1772872383819,0.54836472,1986.5,1985.9,0.00440488]
[1772872384020,0.54263542,1986.3,1985.9,0.00440488]
[1772872384222,0.54263542,1986.3,1985.7,0.58063955]
[1772872384519,0.54263542,1986.1,1985.6,41.38063955]
[1772872385221,0.54263542,1986.1,1985.6,0.00508273]
[1772872385616,0.54263542,1986.0,1985.0,0.58063955]
[1772872386217,0.54263542,1986.0,1985.2,0.58063955]
[1772872386624,0.54263542,1986.0,1985.2,0.58532893]
[1772872390225,7.301,1985.9,1985.2,0.58532893]
[1772872390420,0.54263542,1985.8,1985.2,0.58532893]
[1772872394122,0.54263542,1985.7,1985.2,0.58532893]
[1772872400639,0.54263542,1985.7,1985.2,0.00468938]
[1772872401940,0.54263542,1985.7,1985.2,0.58532893]
[1772872402136,0.54263542,1985.7,1985.2,0.00468938]
[1772872402339,0.54263542,1985.7,1985.2,0.58532893]
[1772872409434,7.304,1985.8,1985.2,0.00468938]
[1772872409435,0.54263542,1985.5,1985.2,0.00468938]
[1772872409634,0.54263542,1985.5,1985.0,0.58063955]
[1772872409839,0.54263542,1985.3,1984.8,0.58063955]
[1772872410640,0.54263542,1985.3,1984.9,0.58063955]
[1772872411340,0.54263542,1985.3,1984.8,0.00523417]
[1772872414041,0.54263542,1985.3,1984.5,1.93841414]
[1772872414843,0.59992003,1985.6,1985.2,1.93841414]
[1772872415144,0.59992003,1985.6,1985.2,0.00634842]
[1772872415648,0.59992003,1985.4,1985.2,0.00634842]
[1772872415845,0.59992003,1985.4,1985.0,0.10086182]
[1772872416748,0.59992003,1985.4,1985.0,0.10681204]
[1772872417049,0.59992003,1985.4,1985.0,0.00595022]
[1772872417244,0.59992003,1985.4,1985.0,0.07400295]
[1772872418652,0.59992003,1985.4,1985.0,0.00595022]
[1772872419450,0.59992003,1985.4,1984.6,40.8]
[1772872419451,0.59992003,1985.4,1984.7,0.03775382]
[1772872420551,0.59992003,1985.4,1984.7,0.04427438]
[1772872420852,5.81758452,1985.3,1984.9,0.02948519]
[1772872421052,0.59992003,1985.4,1985.1,0.02948519]
[1772872421246,0.59992003,1985.4,1985.0,1.96789933]
[1772872421447,0.59992003,1985.4,1985.0,0.02948519]
[1772872426055,0.59992003,1985.4,1984.8,1.93841414]
[1772872428858,0.59992003,1985.4,1984.7,0.00652056]
[1772872430355,0.65735776,1985.2,1984.7,0.00652056]
[1772872431959,0.65648182,1985.5,1984.7,0.00652056]
[1772872432154,0.65648182,1985.3,1984.8,1.93841414]
[1772872438074,0.65648182,1985.3,1984.7,0.16590722]
[1772872438971,0.65648182,1985.3,1984.8,0.15507961]
[1772872443077,0.59231551,1985.5,1985.1,1.93841414]
[1772872443569,0.59231551,1985.5,1985.1,2.09241896]
[1772872444379,0.59231551,1985.5,1985.1,0.15400482]
[1772872444680,4.80712719,1985.7,1985.2,0.14990927]
[1772872444878,6.41482719,1985.6,1985.2,0.14990927]
[1772872445071,0.59231551,1985.6,1985.2,0.14990927]
[1772872448085,4.80712719,1985.9,1985.4,0.552819]
[1772872448286,5.81883659,1985.8,1985.4,0.552819]
[1772872448485,0.59231551,1985.9,1985.4,0.552819]
[1772872448686,6.41103608,1985.8,1985.4,0.552819]
[1772872448883,0.59231551,1985.8,1985.4,0.552819]
[1772872449888,0.59231551,1986.0,1985.4,0.552819]
[1772872450088,6.40809621,1985.9,1985.4,0.552819]
[1772872450288,0.59231551,1985.9,1985.4,0.552819]
[1772872455495,0.59231551,1985.9,1985.3,1.93841414]
[1772872455695,0.59231551,1985.9,1985.3,2.49123314]
[1772872457995,0.59231551,1985.9,1985.4,0.552819]
[1772872465494,0.59231551,1985.9,1985.3,1.93841414]
[1772872465696,0.59231551,1985.9,1985.2,0.552819]
[1772872466198,2.53072965,1985.9,1985.2,0.552819]
[1772872466392,0.59231551,1985.8,1985.2,0.552819]
[1772872466898,0.59231551,1985.8,1985.0,0.552819]
[1772872467796,0.59231551,1985.8,1984.9,1.93841414]
[1772872467998,0.59231551,1985.6,1984.9,0.552819]
[1772872471207,0.59231551,1985.4,1984.9,0.552819]
[1772872474498,0.59231551,1985.4,1984.7,0.00652056]
[1772872474704,0.59231551,1985.4,1984.7,0.56111826]
[1772872477505,0.55640449,1985.2,1984.7,0.56111826]
[1772872478012,0.55640449,1985.2,1984.3,0.5545977]
[1772872478308,0.55640449,1985.2,1984.5,0.5545977]
[1772872478900,0.55640449,1985.2,1984.5,0.5598803]
[1772872480511,0.55640449,1985.4,1984.5,0.5598803]
[1772872483814,0.55640449,1985.4,1984.7,0.5545977]
[1772872487413,0.55640449,1985.2,1984.7,0.5545977]
[1772872487915,0.55640449,1985.2,1984.6,0.5545977]
[1772872489715,0.55640449,1985.2,1984.5,41.3598803]
[1772872490112,0.55640449,1985.0,1984.5,0.5598803]
[1772872490308,0.56201851,1985.0,1984.5,0.5598803]
[1772872492318,0.56201851,1985.0,1984.5,0.0052826]
[1772872492714,0.56201851,1985.0,1984.5,0.5598803]
[1772872492914,0.00561402,1985.0,1984.5,0.5598803]
[1772872493716,0.56201851,1985.0,1984.5,0.5598803]
[1772872496221,0.56201851,1985.0,1984.5,0.0052826]
[1772872497720,0.55640449,1984.8,1984.5,0.0052826]
[1772872497915,0.55640449,1984.8,1984.1,0.5545977]
[1772872498523,0.55640449,1984.8,1984.1,41.3545977]
[1772872498827,0.55640449,1984.8,1984.1,41.36026058]
[1772872499624,0.56930794,1984.6,1984.1,0.58946202]
[1772872500727,0.56930794,1984.9,1984.1,0.58946202]
[1772872501018,0.56930794,1984.7,1984.1,0.58946202]
[1772872502725,0.55222765,1984.9,1984.1,0.58946202]
[1772872502927,6.38517005,1984.8,1984.1,0.58946202]
[1772872503227,0.55222765,1984.8,1984.1,0.58946202]
[1772872503521,0.00561402,1985.0,1984.1,0.58946202]
[1772872503727,5.83333894,1984.9,1984.1,0.58946202]
[1772872503928,6.38556659,1984.8,1984.1,0.58946202]
[1772872504128,0.55222765,1984.8,1984.1,0.58946202]
[1772872506431,0.55222765,1984.9,1984.1,0.58946202]
[1772872506628,5.83400289,1984.8,1984.1,0.58946202]
[1772872506824,0.55222765,1984.9,1984.1,0.58946202]
[1772872507024,5.83400289,1984.8,1984.1,0.58946202]
[1772872507224,0.55222765,1984.8,1984.1,0.58946202]
[1772872511328,0.55222765,1984.6,1984.1,0.58946202]
[1772872515529,0.55222765,1984.6,1984.1,0.00566288]
[1772872515725,0.55222765,1984.6,1984.1,0.56372359]
[1772872519431,0.55222765,1984.6,1984.1,0.00566288]
[1772872519627,0.55222765,1984.4,1984.1,0.00566288]
[1772872519830,0.55222765,1984.4,1984.0,0.55806071]
[1772872520729,0.55222765,1984.4,1984.0,0.56322859]
[1772872521234,6.39674603,1984.3,1983.6,0.55806071]
[1772872521431,0.55222765,1984.5,1983.6,0.55806071]
[1772872521627,0.55222765,1984.5,1983.8,0.55806071]
[1772872521832,0.55222765,1984.7,1983.8,0.55806071]
[1772872522231,0.55222765,1984.7,1983.8,0.56235617]
[1772872523235,0.55222765,1984.5,1983.8,0.56235617]
[1772872527138,0.55222765,1984.5,1984.0,0.55806071]
[1772872529136,0.55222765,1984.7,1984.0,0.55806071]
[1772872529337,6.41157391,1984.6,1984.0,0.55806071]
[1772872529638,0.55222765,1984.6,1984.0,0.55806071]
[1772872532642,0.55222765,1984.6,1984.2,0.54303005]
[1772872539751,0.55846899,1984.7,1984.2,0.54303005]
[1772872539950,5.86108885,1984.6,1984.2,0.54303005]
[1772872540145,0.55846899,1984.7,1984.2,0.54303005]
[1772872540345,6.41858516,1984.6,1984.2,0.54303005]
[1772872540552,0.55846899,1984.6,1984.2,0.54303005]
[1772872542150,0.55846899,1984.6,1984.1,41.34303005]
[1772872542357,0.55846899,1984.4,1984.0,0.54303005]
[1772872542754,0.55846899,1984.4,1983.9,0.54303005]
[1772872543054,0.55846899,1984.4,1983.8,0.00429546]
[1772872543453,0.55846899,1984.4,1983.8,0.54732551]
[1772872545154,0.55846899,1984.4,1983.8,0.00429546]
[1772872545354,0.55846899,1984.2,1983.8,0.00429546]
[1772872546556,0.55846899,1984.4,1983.8,0.54732551]
[1772872553065,0.55846899,1984.5,1983.9,0.54303005]
[1772872557770,2.4979611,1984.5,1983.8,0.54732551]
[1772872557971,0.55846899,1984.3,1983.8,0.54732551]
[1772872562876,0.59645608,1984.6,1983.8,2.48681762]
[1772872563069,6.45517505,1984.5,1983.9,0.54600217]
[1772872563371,0.59645608,1984.5,1983.9,0.54600217]
[1772872565071,0.59645608,1984.7,1984.1,0.54600217]
[1772872565271,4.21481168,1984.8,1984.1,0.54600217]
[1772872565272,6.45516645,1984.6,1984.1,0.54600217]
[1772872565469,0.59645608,1984.6,1984.1,0.54600217]
[1772872579985,0.59645608,1984.8,1984.1,0.54600217]
[1772872580178,6.45856533,1984.7,1984.1,0.54600217]
[1772872580384,0.59645608,1984.9,1984.3,0.54600217]
[1772872580583,5.86160988,1984.8,1984.3,0.54600217]
[1772872580785,0.59645608,1984.9,1984.3,0.54600217]
[1772872580985,5.86160988,1984.8,1984.3,0.54600217]
[1772872581186,0.59645608,1984.9,1984.3,0.54600217]
[1772872581386,5.86098208,1984.8,1984.3,0.54600217]
[1772872581586,0.59645608,1984.9,1984.3,0.54600217]
[1772872581786,5.86095399,1984.8,1984.3,0.54600217]
[1772872581988,0.59645608,1984.9,1984.3,0.54600217]
[1772872582488,6.45695291,1984.8,1984.3,0.54600217]
[1772872582681,0.59645608,1984.8,1984.3,0.54600217]
[1772872590897,0.00561402,1985.0,1984.3,0.54600217]
[1772872591194,6.45455117,1984.9,1984.3,0.54600217]
[1772872591395,0.59645608,1984.9,1984.3,0.54600217]
[1772872591894,0.59596058,1985.0,1984.5,0.54600217]
[1772872600003,0.59596058,1985.0,1984.1,24.691]
[1772872600204,0.59596058,1985.0,1984.2,0.56107865]
[1772872607210,0.59034656,1984.8,1984.2,0.56107865]
[1772872617814,0.59034656,1984.8,1984.1,25.25207865]
[1772872619417,0.59034656,1984.8,1984.2,0.58518767]
[1772872620820,0.56626967,1984.6,1984.2,0.58518767]
[1772872622120,0.56626967,1984.6,1984.1,25.23145939]
[1772872622719,0.56626967,1984.6,1984.2,0.54045939]
[1772872623221,0.56626967,1984.6,1984.1,24.691]
[1772872623421,0.56626967,1984.6,1984.1,25.23145939]
[1772872623819,0.56626967,1984.6,1983.9,0.54045939]
[1772872626329,0.56168882,1984.4,1983.8,0.00429546]
[1772872630629,0.56168882,1984.2,1983.8,0.00429546]
[1772872631223,0.56168882,1984.2,1983.6,40.8]
[1772872631423,0.56168882,1984.2,1983.7,0.54045939]
[1772872632432,0.56168882,1984.2,1983.7,0.54437587]
[1772872633732,0.25174,1986.3,1984.2,0.252]
[1772872633934,0.59917868,1985.7,1984.7,1.9389875]
[1772872634139,0.59917868,1985.7,1984.8,65.298]
[1772872634330,0.59917868,1985.7,1985.0,4.1857079]
[1772872634530,2.81120231,1985.6,1985.0,4.1857079]
[1772872634734,0.59917866,1985.5,1985.0,4.1857079]
[1772872635639,0.59917866,1985.5,1985.1,0.54045939]
[1772872635840,0.59917866,1985.5,1985.1,0.5442302]
[1772872636440,15.70972583,1985.6,1985.1,0.5442302]
[1772872638343,0.57493294,1985.5,1985.1,0.5442302]
[1772872640741,3.38592798,1985.4,1985.1,0.5442302]
[1772872640941,0.57447326,1985.3,1985.1,0.00377081]
[1772872641146,0.57447326,1985.2,1984.9,0.54045939]
[1772872641347,0.57447326,1985.2,1984.8,65.83845939]
[1772872641647,0.57447326,1985.1,1984.8,65.298]
[1772872641945,0.57447326,1985.1,1984.8,65.83845939]
[1772872642146,0.57447326,1985.1,1984.8,65.84327572]
[1772872642549,0.57447612,1985.5,1984.9,0.54045939]
[1772872642946,12.255084,1985.4,1984.9,0.54045939]
[1772872643444,12.82937375,1985.4,1984.9,0.54045939]
[1772872647051,1.21128439,1985.6,1984.9,0.54045939]
[1772872647849,1.2058564,1985.5,1984.9,0.54045939]
[1772872648448,1.2058564,1985.4,1984.9,0.54045939]
[1772872650851,1.21119644,1985.3,1984.8,65.30281633]
[1772872651449,1.21119644,1985.0,1984.8,65.30281633]
[1772872651950,7.53686918,1985.0,1984.8,24.50281633]
[1772872652250,7.53686918,1985.0,1984.8,23.12346371]
[1772872652644,1.21119644,1985.0,1984.8,23.12346371]
[1772872652848,8.22730929,1984.9,1984.8,23.12346371]
[1772872653151,1.90163655,1985.5,1984.8,23.12346371]
[1772872653350,1.90163655,1985.1,1984.8,23.12346371]
[1772872653748,8.22730929,1985.0,1984.8,23.12346371]
[1772872653948,1.90163655,1985.0,1984.8,23.12346371]
[1772872654351,6.32567274,1984.9,1984.8,23.12346371]
[1772872655350,6.32567274,1984.9,1984.7,42.65147493]
[1772872655351,1.90163655,1984.8,1984.7,40.8]
[1772872655554,3.03168967,1985.3,1984.6,29.2697079]
[1772872655852,3.03168967,1985.3,1984.7,4.1857079]
[1772872656449,3.03168967,1985.3,1984.8,40.8]
[1772872657750,3.03168967,1985.3,1984.9,25.141]
[1772872658549,0.00542962,1985.6,1985.1,1.93778872]
[1772872658852,3.00173806,1985.9,1985.3,1.93778872]
[1772872659053,3.00312305,1985.7,1985.3,1.93778872]
[1772872659648,3.0071739,1985.7,1985.3,1.93778872]
[1772872660252,1.90163655,1986.2,1985.4,1.76599383]
[1772872660452,1.90706617,1986.2,1985.4,1.76599383]
[1772872661353,1.90706617,1986.2,1985.4,5.95170173]
[1772872661354,1.91172889,1986.2,1985.4,5.95170173]
[1772872661552,1.91172889,1986.2,1985.6,1.85147493]
[1772872661749,1.91172889,1986.2,1985.5,1.93778872]
[1772872661949,1.91172889,1986.2,1985.6,40.8]
[1772872663252,1.91172889,1986.2,1985.6,44.9857079]
[1772872664255,1.91172889,1986.2,1985.6,40.8]
[1772872664454,1.91172889,1986.2,1985.6,44.99415478]
[1772872667458,1.91172889,1986.2,1985.6,40.8]
[1772872669560,1.90629927,1986.2,1985.6,40.8]
[1772872671163,1.90163655,1986.0,1985.4,4.19415478]
[1772872671666,1.90163655,1986.0,1985.4,44.99415478]
[1772872672463,1.90163655,1986.0,1985.4,46.84562971]
[1772872673766,1.90706617,1985.9,1985.6,1.85147493]
[1772872673966,1.90163655,1985.9,1985.5,4.19415478]
[1772872674162,1.90163655,1985.9,1985.5,6.04562971]
[1772872674867,1.90163655,1985.9,1985.5,1.85147493]
[1772872676366,1.90163655,1985.9,1985.5,6.04562971]
[1772872678869,2.38973672,1985.8,1985.5,6.04562971]
[1772872679071,2.3843071,1985.8,1985.5,4.19415478]
[1772872681069,2.3843071,1985.8,1985.5,5.99235752]
[1772872682066,2.3843071,1985.8,1985.5,4.19415478]
[1772872682271,2.38973672,1985.8,1985.5,4.19415478]
[1772872684674,2.3751527,1985.6,1985.2,6.27856185]
[1772872684877,2.3751527,1985.6,1985.1,8.48647348]
[1772872685076,0.00542962,1985.5,1985.2,2.20791163]
[1772872685778,2.38058232,1985.5,1985.1,49.28647348]
[1772872686076,2.38058232,1985.5,1985.0,2.20791163]
[1772872686775,2.38058232,1985.5,1984.9,2.20791163]
[1772872687173,2.38058232,1985.5,1984.9,43.00791163]
[1772872688274,2.3751527,1985.5,1984.9,43.00791163]
[1772872688679,2.3751527,1985.3,1984.9,43.00791163]
[1772872689981,2.38058232,1985.2,1984.9,2.20791163]
[1772872690177,2.3751527,1985.2,1984.9,2.20791163]
[1772872691285,2.38058232,1985.1,1984.8,2.20791163]
[1772872691482,2.3751527,1985.1,1984.8,2.20791163]
[1772872691884,2.38058232,1985.0,1984.7,0.006265]
[1772872692183,2.3751527,1985.0,1984.7,2.21417663]
[1772872692382,0.00542962,1984.9,1984.7,2.21417663]
[1772872693381,2.38058232,1984.9,1984.5,2.20791163]
[1772872694485,2.38058232,1984.9,1984.5,2.21286749]
[1772872696184,2.38058232,1984.9,1984.5,0.00495586]
[1772872698981,2.38058232,1984.9,1984.3,2.20791163]
[1772872699182,2.38058232,1984.9,1984.2,40.8]
[1772872699379,2.3751527,1984.8,1984.2,40.8]
[1772872699985,2.38041489,1984.8,1984.2,43.01423406]
[1772872700289,2.38041489,1984.8,1984.2,2.21423406]
[1772872700486,2.3751527,1984.6,1984.2,0.00632243]
[1772872700684,2.3751527,1984.6,1984.2,2.21423406]
[1772872701182,2.3751527,1984.6,1984.2,0.00632243]
[1772872701387,2.3751527,1984.4,1984.2,0.00632243]
[1772872703192,2.3751527,1984.4,1984.1,2.20791163]
[1772872703496,0.00542962,1984.3,1984.1,2.20791163]
[1772872703789,0.00542962,1984.3,1984.0,2.20791163]
[1772872704291,0.00542962,1984.3,1984.0,2.21248049]
[1772872707493,2.38058232,1984.3,1984.0,2.21248049]
[1772872708491,2.38058232,1984.3,1984.0,0.00456886]
[1772872710398,2.38058232,1984.3,1983.8,2.20791163]
[1772872711301,2.38058232,1984.3,1983.8,2.2128664]
[1772872711797,7.67026219,1984.8,1983.4,2.20791163]
[1772872711798,2.3751527,1984.0,1983.4,2.20791163]
[1772872711995,2.3751527,1984.2,1983.5,2.20791163]
[1772872712194,0.00542962,1984.0,1983.5,2.20791163]
[1772872712390,2.34506086,1984.0,1983.6,2.39380933]
[1772872712797,2.34506086,1984.0,1983.6,2.39867708]
[1772872713900,2.34506086,1984.0,1983.6,0.00486775]
[1772872714097,2.34506086,1984.0,1983.3,2.39380933]
[1772872714298,2.34506086,1984.0,1983.4,1.93778872]
[1772872714498,2.34506086,1984.0,1983.3,43.19380933]
[1772872714901,2.34506086,1984.0,1983.3,2.39380933]
[1772872715105,2.34506086,1984.0,1983.3,2.39823508]
[1772872715501,2.34506086,1984.0,1983.4,2.39380933]
[1772872716201,2.34506086,1984.0,1983.3,2.39823508]
[1772872718404,2.33963124,1984.0,1983.3,2.39823508]
[1772872719005,2.34506086,1983.9,1983.3,2.39823508]
[1772872719201,2.33963124,1983.9,1983.3,2.39823508]
[1772872719504,0.00542962,1983.8,1983.3,2.39823508]
[1772872720303,2.33963124,1984.0,1983.3,2.39823508]
[1772872721305,2.33963124,1984.3,1983.3,2.39823508]
[1772872728307,2.33963124,1984.3,1983.5,2.39380933]
[1772872733411,2.33963124,1984.5,1983.6,2.39380933]